fUST/lending_fUST_20240112
["ID","MTS","AMOUNT","RATE_DAILY","PERIOD"]
[311315546,1705061444841,-500.0,0.00022441,2]
[311315549,1705061444850,-504.28672125,0.00022441,2]
[311315551,1705061444860,-500.0,0.00022441,2]
[311315553,1705061444869,-500.0,0.00022441,2]
[311315555,1705061444878,-501.50194753,0.00022441,2]
[311315557,1705061444889,-500.0,0.00022441,2]
[311315559,1705061444898,-500.0,0.00022441,2]
[311315561,1705061444910,-264.33380194,0.00022441,2]
[311315563,1705061444920,-500.0,0.00022441,2]
[311315565,1705061444929,-509.48319526,0.00022441,2]
[311315567,1705061444941,-500.0,0.00022441,2]
[311315569,1705061444951,-404.20160165,0.00022441,2]
[311315571,1705061444961,-506.81906323,0.00022441,2]
[311315573,1705061444971,-605.14027275,0.00022441,2]
[311315575,1705061444980,-500.0,0.00022441,2]
[311315577,1705061444990,-500.0,0.00022441,2]
[311315579,1705061445000,-500.0,0.00022441,2]
[311315581,1705061445009,-500.0,0.00022441,2]
[311315583,1705061445022,-500.0,0.00022441,2]
[311315585,1705061445032,-500.0,0.00022441,2]
[311315587,1705061445041,-265.65054058,0.00022441,2]
[311315590,1705061445051,-534.86153431,0.00022441,2]
[311315591,1705061445061,-500.0,0.00022441,2]
[311315594,1705061445070,-500.0,0.00022441,2]
[311315596,1705061445079,-500.0,0.00022441,2]
[311315598,1705061445088,-500.0,0.00022441,2]
[311315600,1705061445097,-500.0,0.00022441,2]
[311315602,1705061445106,-502.81795589,0.00022441,2]
[311315603,1705061445114,-500.0,0.00022441,2]
[311315605,1705061445123,-500.0,0.00022441,2]
[311315607,1705061445133,-500.0,0.00022441,2]
[311315617,1705061445217,-465.78510027,0.00022441,2]
[311315619,1705061445227,-502.73231423,0.00022441,2]
[311315621,1705061445238,-500.0,0.00022441,2]
[311315623,1705061445247,-500.0,0.00022441,2]
[311315625,1705061445256,-500.0,0.00022441,2]
[311315627,1705061445269,-500.0,0.00022441,2]
[311315629,1705061445278,-500.0,0.00022441,2]
[311315631,1705061445288,-500.0,0.00022441,2]
[311315633,1705061445297,-500.0,0.00022441,2]
[311315635,1705061445307,-500.0,0.00022441,2]
[311315637,1705061445316,-500.0,0.00022441,2]
[311315639,1705061445325,-500.0,0.00022441,2]
[311315641,1705061445334,-500.0,0.00022441,2]
[311315643,1705061445343,-500.0,0.00022441,2]
[311315645,1705061445352,-500.0,0.00022441,2]
[311315647,1705061445361,-1048.857616,0.00022465,2]
[311315649,1705061445372,-1048.857616,0.00022465,2]
[311315651,1705061445383,-1493.537471,0.00022465,2]
[311315654,1705061445393,-1493.537471,0.00022465,2]
[311315656,1705061445403,-2000.0,0.00022465,2]
[311315658,1705061445414,-2000.0,0.00022465,2]
[311315660,1705061445425,-500.0,0.00022465,2]
[311315662,1705061445434,-729.65,0.00022465,2]
[311315664,1705061445445,-503.40046405,0.00022465,2]
[311315666,1705061445455,-500.0,0.00022465,2]
[311315668,1705061445466,-506.10378055,0.00022465,2]
[311315670,1705061445476,-500.0,0.00022465,2]
[311315671,1705061445487,-500.0,0.00022465,2]
[311315673,1705061445498,-516.03177833,0.00022465,2]
[311315676,1705061445509,-501.71106437,0.00022465,2]
[311315677,1705061445522,-500.0,0.00022465,2]
[311315679,1705061445531,-563.44,0.00022465,2]
[311315681,1705061445540,-500.0,0.00022465,2]
[311315684,1705061445550,-500.0,0.00022465,2]
[311315685,1705061445559,-500.0,0.00022465,2]
[311315688,1705061445570,-500.0,0.00022465,2]
[311315690,1705061445579,-500.0,0.00022465,2]
[311315691,1705061445588,-448.21817105,0.00022465,2]
[311315693,1705061445598,-503.34416239,0.00022465,2]
[311315695,1705061445607,-500.0,0.00022465,2]
[311315698,1705061445617,-527.79610462,0.00022465,2]
[311315699,1705061445627,-501.58628097,0.00022465,2]
[311315701,1705061445640,-500.0,0.00022465,2]
[311315703,1705061445649,-500.0,0.00022465,2]
[311315706,1705061445659,-500.0,0.00022465,2]
[311315708,1705061445668,-500.0,0.00022465,2]
[311315710,1705061445677,-507.99982745,0.00022465,2]
[311315712,1705061445686,-626.6512318,0.00022465,2]
[311315715,1705061445695,-515.59759976,0.00022465,2]
[311315717,1705061445704,-504.63290904,0.00022465,2]
[311315719,1705061445712,-500.0,0.00022465,2]
[311315721,1705061445722,-505.62134056,0.00022465,2]
[311315723,1705061445731,-500.0,0.00022465,2]
[311315725,1705061445740,-500.0,0.00022465,2]
[311315727,1705061445749,-500.0,0.00022465,2]
[311315729,1705061445758,-500.0,0.00022465,2]
[311315730,1705061445769,-504.98952588,0.00022465,2]
[311315732,1705061445778,-500.0,0.00022465,2]
[311315734,1705061445787,-500.0,0.00022465,2]
[311315736,1705061445796,-500.0,0.00022465,2]
[311315738,1705061445805,-594.19,0.00022465,2]
[311315742,1705061445814,-502.58332383,0.00022465,2]
[311315746,1705061445823,-1124.22,0.00022465,2]
[311315748,1705061445832,-580.42,0.00022465,2]
[311315752,1705061445843,-1241.77,0.00022465,2]
[311315756,1705061445852,-500.0,0.00022465,2]
[311315760,1705061445861,-500.0,0.00022465,2]
[311315764,1705061445871,-500.0,0.00022465,2]
[311315767,1705061445880,-2155.73,0.00022465,2]
[311315769,1705061445890,-506.34902153,0.00022465,2]
[311315772,1705061445899,-500.0,0.00022465,2]
[311315773,1705061445908,-200.88833402,0.00022465,2]
[311315775,1705061445918,-500.0,0.00022465,2]
[311315778,1705061445929,-500.0,0.00022465,2]
[311315780,1705061445938,-500.0,0.00022465,2]
[311315782,1705061445947,-500.0,0.00022465,2]
[311315784,1705061445957,-10334.86,0.00022465,2]
[311315786,1705061445966,-500.0,0.00022465,2]
[311315788,1705061445974,-500.0,0.00022465,2]
[311315789,1705061445983,-500.0,0.00022465,2]
[311315792,1705061445993,-500.0,0.00022465,2]
[311315794,1705061446002,-500.0,0.00022465,2]
[311315796,1705061446011,-5319.57,0.00022465,2]
[311315798,1705061446022,-2938.15,0.00022465,2]
[311315800,1705061446031,-9953.97,0.00022465,2]
[311315802,1705061446040,-709.41,0.00022465,2]
[311315803,1705061446049,-2005.47,0.00022465,2]
[311315805,1705061446059,-286.77903007,0.00022465,2]
[311315807,1705061446068,-1458.59,0.00022465,2]
[311315809,1705061446077,-387.36439512,0.00022465,2]
[311315811,1705061446086,-500.0,0.00022465,2]
[311315813,1705061446095,-500.0,0.00022465,2]
[311315815,1705061446104,-470.02436775,0.00022465,2]
[311315817,1705061446113,-727.7,0.00022465,2]
[311315819,1705061446122,-500.0,0.00022465,2]
[311315821,1705061446131,-594.86,0.00022465,2]
[311315823,1705061446140,-500.0,0.00022465,2]
[311315825,1705061446149,-500.0,0.00022465,2]
[311315827,1705061446158,-500.0,0.00022714,2]
[311315829,1705061446167,-500.0,0.00022715,2]
[311315831,1705061446175,-503.33070678,0.00022715,2]
[311315833,1705061446184,-253.32882516,0.00022715,2]
[311315835,1705061446193,-500.0,0.00022715,2]
[311315837,1705061446202,-672.59,0.00022715,2]
[311315839,1705061446211,-500.0,0.00022715,2]
[311315841,1705061446219,-511.67588667,0.00022715,2]
[311315843,1705061446228,-500.0,0.00022715,2]
[311315845,1705061446237,-500.0,0.00022715,2]
[311315847,1705061446248,-240.68955365,0.00022715,2]
[311315849,1705061446257,-500.0,0.00022715,2]
[311315851,1705061446269,-500.0,0.00022715,2]
[311315853,1705061446277,-500.0,0.00022715,2]
[311315855,1705061446286,-500.0,0.00022715,2]
[311315857,1705061446295,-500.0,0.00022715,2]
[311315859,1705061446303,-505.28330815,0.00022715,2]
[311315861,1705061446312,-500.0,0.00022715,2]
[311315862,1705061446321,-535.69623178,0.00022715,2]
[311315864,1705061446330,-500.0,0.00022715,2]
[311315866,1705061446339,-500.0,0.00022715,2]
[311315868,1705061446348,-500.0,0.00022715,2]
[311315870,1705061446357,-508.19510463,0.00022715,2]
[311315872,1705061446366,-500.0,0.00022715,2]
[311315874,1705061446375,-500.0,0.00022715,2]
[311315876,1705061446384,-500.0,0.00022715,2]
[311315878,1705061446393,-500.0,0.00022715,2]
[311315880,1705061446402,-500.0,0.00022715,2]
[311315882,1705061446411,-383.49442707,0.00022715,2]
[311315884,1705061446420,-503.4340707,0.00022715,2]
[311315886,1705061446429,-302.39991316,0.00022715,2]
[311315888,1705061446438,-502.05991619,0.00022715,2]
[311315890,1705061446448,-500.0,0.00022715,2]
[311315892,1705061446458,-500.0,0.00022715,2]
[311315894,1705061446467,-500.0,0.00022715,2]
[311315896,1705061446476,-500.0,0.00022715,2]
[311315897,1705061446486,-500.0,0.00022715,2]
[311315900,1705061446497,-227.16371429,0.00022715,2]
[311315901,1705061446508,-503.61309405,0.00022715,2]
[311315903,1705061446522,-505.15444565,0.00022715,2]
[311315905,1705061446533,-556.44325648,0.00022715,2]
[311315907,1705061446544,-506.34318493,0.00022715,2]
[311315909,1705061446554,-500.0,0.00022715,2]
[311315911,1705061446563,-500.0,0.00022715,2]
[311315913,1705061446573,-500.0,0.00022715,2]
[311315915,1705061446583,-165.5381675,0.00022715,2]
[311315917,1705061446592,-184.13370995,0.00022715,2]
[311315919,1705061446601,-500.0,0.00022715,2]
[311315921,1705061446610,-500.0,0.00022715,2]
[311315923,1705061446620,-500.0,0.00022715,2]
[311315925,1705061446629,-500.0,0.00022715,2]
[311315926,1705061446638,-500.0,0.00022715,2]
[311315928,1705061446649,-500.0,0.00022715,2]
[311315930,1705061446658,-500.0,0.00022715,2]
[311315932,1705061446667,-500.0,0.00022715,2]
[311315934,1705061446676,-503.53907948,0.00022715,2]
[311315936,1705061446685,-500.0,0.00022715,2]
[311315938,1705061446694,-151.0,0.00022715,2]
[311315940,1705061446703,-450.0,0.00022716,2]
[311315942,1705061446713,-450.0,0.00022716,2]
[311315944,1705061446723,-1048.857616,0.00022739,2]
[311315946,1705061446733,-1048.857616,0.00022739,2]
[311315948,1705061446741,-1493.537471,0.00022739,2]
[311315950,1705061446750,-1493.537471,0.00022739,2]
[311315952,1705061446760,-2000.0,0.00022739,2]
[311315954,1705061446771,-2000.0,0.00022739,2]
[311315956,1705061446781,-364.97942825,0.00022739,2]
[311315958,1705061446790,-729.65,0.00022739,2]
[311315960,1705061446798,-500.0,0.00022739,2]
[311315962,1705061446808,-500.0,0.00022739,2]
[311315964,1705061446818,-525.35269183,0.00022739,2]
[311315966,1705061446826,-537.2506109,0.00022739,2]
[311315968,1705061446835,-500.0,0.00022739,2]
[311315969,1705061446844,-500.0,0.00022739,2]
[311315970,1705061446855,-500.0,0.00022739,2]
[311315971,1705061446864,-500.0,0.00022739,2]
[311315972,1705061446873,-500.0,0.00022739,2]
[311315973,1705061446882,-242.60610889,0.00022739,2]
[311315974,1705061446891,-500.0,0.00022739,2]
[311315975,1705061446901,-500.0,0.00022739,2]
[311315976,1705061446910,-500.0,0.00022739,2]
[311315977,1705061446919,-500.0,0.00022739,2]
[311315978,1705061446928,-500.0,0.00022739,2]
[311315979,1705061446937,-503.79144164,0.00022739,2]
[311315980,1705061446946,-500.0,0.00022739,2]
[311315981,1705061446955,-594.19,0.00022739,2]
[311315982,1705061446965,-1124.22,0.00022739,2]
[311315983,1705061446973,-580.42,0.00022739,2]
[311315984,1705061446985,-1241.77,0.00022739,2]
[311315985,1705061446994,-505.57069525,0.00022739,2]
[311315986,1705061447003,-500.0,0.00022739,2]
[311315987,1705061447012,-2155.73,0.00022739,2]
[311315988,1705061447022,-500.0,0.00022739,2]
[311315989,1705061447031,-500.0,0.00022739,2]
[311315990,1705061447041,-500.0,0.00022739,2]
[311315991,1705061447050,-484.65649682,0.00022739,2]
[311315993,1705061447059,-10334.86,0.00022739,2]
[311315995,1705061447068,-500.0,0.00022739,2]
[311315997,1705061447076,-500.0,0.00022739,2]
[311315999,1705061447085,-500.0,0.00022739,2]
[311316001,1705061447094,-500.0,0.00022739,2]
[311316011,1705061447180,-5319.57,0.00022739,2]
[311316013,1705061447189,-2938.15,0.00022739,2]
[311316015,1705061447199,-9953.97,0.00022739,2]
[311316017,1705061447207,-709.41,0.00022739,2]
[311316019,1705061447216,-2005.47,0.00022739,2]
[311316021,1705061447225,-1458.59,0.00022739,2]
[311316023,1705061447235,-500.0,0.00022739,2]
[311316025,1705061447244,-500.0,0.00022739,2]
[311316027,1705061447253,-727.7,0.00022739,2]
[311316029,1705061447262,-500.0,0.00022739,2]
[311316030,1705061447272,-594.86,0.00022739,2]
[311316032,1705061447283,-500.0,0.00022739,2]
[311316034,1705061447292,-500.0,0.00022739,2]
[311316036,1705061447301,-166.666666,0.00022944,2]
[311316038,1705061447309,-500.0,0.00022988,2]
[311316040,1705061447318,-500.0,0.00022988,2]
[311316042,1705061447326,-500.0,0.00022989,2]
[311316044,1705061447336,-561.99301516,0.00022989,2]
[311316046,1705061447345,-672.59,0.00022989,2]
[311316048,1705061447354,-580.19280659,0.00022989,2]
[311316049,1705061447363,-510.88740699,0.00022989,2]
[311316051,1705061447372,-500.0,0.00022989,2]
[311316053,1705061447382,-500.0,0.00022989,2]
[311316055,1705061447391,-316.04905805,0.00022989,2]
[311316057,1705061447400,-500.0,0.00022989,2]
[311316059,1705061447408,-500.0,0.00022989,2]
[311316061,1705061447417,-500.0,0.00022989,2]
[311316063,1705061447426,-500.0,0.00022989,2]
[311316065,1705061447435,-500.0,0.00022989,2]
[311316067,1705061447445,-500.0,0.00022989,2]
[311316069,1705061447453,-500.0,0.00022989,2]
[311316071,1705061447462,-500.0,0.00022989,2]
[311316073,1705061447471,-500.0,0.00022989,2]
[311316074,1705061447480,-503.29988254,0.00022989,2]
[311316076,1705061447488,-506.17830102,0.00022989,2]
[311316078,1705061447498,-500.0,0.00022989,2]
[311316080,1705061447507,-507.72720742,0.00022989,2]
[311316082,1705061447518,-500.0,0.00022989,2]
[311316084,1705061447527,-500.0,0.00022989,2]
[311316086,1705061447536,-500.0,0.00022989,2]
[311316088,1705061447545,-500.0,0.00022989,2]
[311316090,1705061447554,-500.0,0.00022989,2]
[311316092,1705061447563,-500.0,0.00022989,2]
[311316094,1705061447572,-500.0,0.00022989,2]
[311316096,1705061447581,-500.0,0.00022989,2]
[311316098,1705061447589,-645.29078378,0.00022989,2]
[311316100,1705061447598,-151.0,0.00022989,2]
[311316102,1705061447607,-450.0,0.0002299,2]
[311316104,1705061447616,-450.0,0.0002299,2]
[311316106,1705061447624,-2093.76186828,0.00023,2]
[311316108,1705061447633,-9924.74397112,0.00023,2]
[311316110,1705061447642,-1048.857616,0.00023013,2]
[311316112,1705061447651,-1048.857616,0.00023013,2]
[311316114,1705061447661,-1493.537471,0.00023013,2]
[311316116,1705061447670,-1493.537471,0.00023013,2]
[311316118,1705061447679,-2000.0,0.00023013,2]
[311316119,1705061447689,-2000.0,0.00023013,2]
[311316121,1705061447698,-729.65,0.00023013,2]
[311316123,1705061447707,-500.0,0.00023013,2]
[311316125,1705061447716,-500.0,0.00023013,2]
[311316127,1705061447725,-500.0,0.00023013,2]
[311316129,1705061447734,-500.0,0.00023013,2]
[311316131,1705061447742,-398.43963782,0.00023013,2]
[311316133,1705061447751,-500.0,0.00023013,2]
[311316135,1705061447760,-500.0,0.00023013,2]
[311316137,1705061447774,-620.78,0.00023013,2]
[311316139,1705061447784,-500.0,0.00023013,2]
[311316141,1705061447793,-500.0,0.00023013,2]
[311316143,1705061447803,-500.0,0.00023013,2]
[311316145,1705061447812,-594.19,0.00023013,2]
[311316147,1705061447821,-1124.22,0.00023013,2]
[311316149,1705061447830,-580.42,0.00023013,2]
[311316151,1705061447840,-1241.77,0.00023013,2]
[311316153,1705061447851,-500.0,0.00023013,2]
[311316155,1705061447860,-2155.73,0.00023013,2]
[311316157,1705061447869,-500.0,0.00023013,2]
[311316159,1705061447878,-500.0,0.00023013,2]
[311316161,1705061447891,-500.0,0.00023013,2]
[311316163,1705061447900,-10334.86,0.00023013,2]
[311316165,1705061447909,-500.0,0.00023013,2]
[311316167,1705061447919,-500.0,0.00023013,2]
[311316169,1705061447930,-297.81780328,0.00023013,2]
[311316171,1705061447939,-500.0,0.00023013,2]
[311316173,1705061447948,-5319.57,0.00023013,2]
[311316175,1705061447957,-2938.15,0.00023013,2]
[311316177,1705061447967,-9953.97,0.00023013,2]
[311316179,1705061447976,-709.41,0.00023013,2]
[311316181,1705061447985,-2005.47,0.00023013,2]
[311316183,1705061447994,-1458.59,0.00023013,2]
[311316185,1705061448004,-500.0,0.00023013,2]
[311316187,1705061448013,-500.0,0.00023013,2]
[311316189,1705061448026,-727.7,0.00023013,2]
[311316191,1705061448035,-500.0,0.00023013,2]
[311316193,1705061448044,-594.86,0.00023013,2]
[311316194,1705061448054,-155.03875969,0.00023189,2]
[311316196,1705061448063,-1822.38176649,0.00023189,2]
[311316198,1705061448073,-2080.28320628,0.00023189,2]
[311316200,1705061448083,-300.0,0.00023189,2]
[311316202,1705061448092,-265.90298061,0.00023189,2]
[311316204,1705061448102,-500.0,0.00023263,2]
[311316207,1705061448111,-672.59,0.00023263,2]
[311316208,1705061448120,-500.0,0.00023263,2]
[311316210,1705061448130,-500.0,0.00023263,2]
[311316212,1705061448139,-482.44626768,0.00023263,2]
[311316214,1705061448147,-500.0,0.00023263,2]
[311316216,1705061448157,-517.95883023,0.00023263,2]
[311316218,1705061448166,-500.0,0.00023263,2]
[311316220,1705061448176,-635.53581168,0.00023263,2]
[311316222,1705061448185,-523.10019394,0.00023263,2]
[311316224,1705061448194,-503.33954714,0.00023263,2]
[311316226,1705061448203,-500.0,0.00023263,2]
[311316228,1705061448212,-500.0,0.00023263,2]
[311316230,1705061448221,-500.0,0.00023263,2]
[311316232,1705061448230,-500.0,0.00023263,2]
[311316234,1705061448239,-500.0,0.00023263,2]
[311316236,1705061448248,-524.78685357,0.00023263,2]
[311316238,1705061448257,-151.0,0.00023263,2]
[311316240,1705061448267,-729.65,0.00023287,2]
[311316242,1705061448277,-571.39050243,0.00023287,2]
[311316244,1705061448286,-384.0165987,0.00023287,2]
[311316246,1705061448295,-500.0,0.00023287,2]
[311316248,1705061448304,-500.0,0.00023287,2]
[311316250,1705061448312,-500.0,0.00023287,2]
[311316252,1705061448322,-500.0,0.00023287,2]
[311316253,1705061448330,-500.0,0.00023287,2]
[311316255,1705061448339,-500.0,0.00023287,2]
[311316257,1705061448348,-500.0,0.00023287,2]
[311316259,1705061448357,-594.19,0.00023287,2]
[311316261,1705061448366,-1124.22,0.00023287,2]
[311316263,1705061448375,-580.42,0.00023287,2]
[311316265,1705061448383,-1241.77,0.00023287,2]
[311316267,1705061448392,-500.0,0.00023287,2]
[311316269,1705061448401,-2155.73,0.00023287,2]
[311316270,1705061448410,-500.0,0.00023287,2]
[311316271,1705061448421,-500.0,0.00023287,2]
[311316272,1705061448429,-500.0,0.00023287,2]
[311316273,1705061448438,-10334.86,0.00023287,2]
[311316274,1705061448448,-500.0,0.00023287,2]
[311316275,1705061448456,-500.0,0.00023287,2]
[311316276,1705061448465,-500.0,0.00023287,2]
[311316277,1705061448474,-5319.57,0.00023287,2]
[311316278,1705061448483,-2938.15,0.00023287,2]
[311316279,1705061448492,-9953.97,0.00023287,2]
[311316280,1705061448501,-709.41,0.00023287,2]
[311316281,1705061448510,-2005.47,0.00023287,2]
[311316282,1705061448522,-1458.59,0.00023287,2]
[311316283,1705061448531,-500.0,0.00023287,2]
[311316284,1705061448540,-500.0,0.00023287,2]
[311316285,1705061448550,-727.7,0.00023287,2]
[311316286,1705061448559,-500.0,0.00023287,2]
[311316287,1705061448568,-594.86,0.00023287,2]
[311316288,1705061448577,-500.0,0.00023288,2]
[311316289,1705061448586,-500.0,0.00023288,2]
[311316291,1705061448595,-500.0,0.00023288,2]
[311316293,1705061448604,-500.0,0.00023288,2]
[311316295,1705061448614,-241.90658986,0.00023288,2]
[311316297,1705061448623,-500.0,0.00023288,2]
[311316299,1705061448632,-500.0,0.00023288,2]
[311316301,1705061448640,-622.61110964,0.00023288,2]
[311316303,1705061448649,-500.0,0.00023288,2]
[311316305,1705061448659,-195.88991541,0.00023288,2]
[311316307,1705061448668,-466.81253896,0.00023288,2]
[311316309,1705061448677,-281.74111197,0.00023288,2]
[311316311,1705061448685,-500.0,0.00023288,2]
[311316313,1705061448694,-401.30646186,0.00023288,2]
[311316315,1705061448703,-500.0,0.00023288,2]
[311316317,1705061448713,-500.0,0.00023288,2]
[311316319,1705061448722,-500.0,0.00023288,2]
[311316321,1705061448731,-500.0,0.00023288,2]
[311316323,1705061448741,-500.0,0.00023288,2]
[311316325,1705061448750,-500.0,0.00023288,2]
[311316327,1705061448760,-500.0,0.00023288,2]
[311316329,1705061448771,-500.0,0.00023288,2]
[311316331,1705061448781,-500.0,0.00023288,2]
[311316333,1705061448790,-500.0,0.00023288,2]
[311316335,1705061448799,-500.0,0.00023288,2]
[311316337,1705061448809,-500.0,0.00023288,2]
[311316339,1705061448819,-500.0,0.00023288,2]
[311316341,1705061448828,-500.0,0.00023288,2]
[311316343,1705061448838,-1048.857616,0.00023288,2]
[311316345,1705061448851,-1048.857616,0.00023288,2]
[311316347,1705061448861,-1493.537471,0.00023288,2]
[311316349,1705061448870,-1493.537471,0.00023288,2]
[311316351,1705061448880,-2000.0,0.00023288,2]
[311316361,1705061448970,-2000.0,0.00023288,2]
[311316363,1705061448980,-151.0,0.00023377,2]
[311316365,1705061448990,-166.666666,0.00023456,2]
[311316367,1705061449000,-450.0,0.00023537,2]
[311316369,1705061449010,-450.0,0.00023537,2]
[311316371,1705061449027,-500.0,0.00023537,2]
[311316373,1705061449037,-672.59,0.00023537,2]
[311316375,1705061449046,-500.0,0.00023537,2]
[311316377,1705061449055,-500.0,0.00023537,2]
[311316379,1705061449065,-500.0,0.00023537,2]
[311316381,1705061449075,-500.0,0.00023537,2]
[311316383,1705061449084,-500.0,0.00023537,2]
[311316385,1705061449094,-611.21842756,0.00023537,2]
[311316387,1705061449104,-510.04611867,0.00023537,2]
[311316389,1705061449113,-502.04857089,0.00023537,2]
[311316391,1705061449123,-503.44599568,0.00023537,2]
[311316393,1705061449132,-729.65,0.00023561,2]
[311316395,1705061449143,-573.43232172,0.00023561,2]
[311316397,1705061449152,-500.0,0.00023561,2]
[311316399,1705061449161,-228.44603421,0.00023561,2]
[311316401,1705061449171,-500.0,0.00023561,2]
[311316403,1705061449180,-500.0,0.00023561,2]
[311316405,1705061449189,-500.0,0.00023561,2]
[311316407,1705061449198,-500.0,0.00023561,2]
[311316409,1705061449207,-594.19,0.00023561,2]
[311316411,1705061449216,-1124.22,0.00023561,2]
[311316413,1705061449226,-580.42,0.00023561,2]
[311316415,1705061449236,-1241.77,0.00023561,2]
[311316417,1705061449245,-500.0,0.00023561,2]
[311316419,1705061449254,-2155.73,0.00023561,2]
[311316421,1705061449263,-500.0,0.00023561,2]
[311316423,1705061449276,-500.0,0.00023561,2]
[311316425,1705061449285,-500.0,0.00023561,2]
[311316427,1705061449294,-10334.86,0.00023561,2]
[311316429,1705061449304,-500.0,0.00023561,2]
[311316431,1705061449313,-500.0,0.00023561,2]
[311316433,1705061449321,-500.0,0.00023561,2]
[311316435,1705061449331,-5319.57,0.00023561,2]
[311316437,1705061449341,-2938.15,0.00023561,2]
[311316439,1705061449350,-9953.97,0.00023561,2]
[311316441,1705061449359,-709.41,0.00023561,2]
[311316443,1705061449369,-2005.47,0.00023561,2]
[311316445,1705061449378,-1458.59,0.00023561,2]
[311316447,1705061449387,-500.0,0.00023561,2]
[311316449,1705061449396,-500.0,0.00023561,2]
[311316451,1705061449406,-727.7,0.00023561,2]
[311316453,1705061449415,-596.81,0.00023561,2]
[311316456,1705061449425,-594.86,0.00023561,2]
[311316458,1705061449434,-171.974707,0.00023561,2]
[311316459,1705061449443,-500.0,0.00023652,2]
[311316461,1705061449452,-450.0,0.00023811,2]
[311316464,1705061449462,-450.0,0.00023811,2]
[311316466,1705061449471,-253.0,0.00023811,2]
[311316468,1705061449480,-672.59,0.00023811,2]
[311316469,1705061449488,-500.0,0.00023811,2]
[311316471,1705061449498,-500.0,0.00023811,2]
[311316474,1705061449507,-500.0,0.00023811,2]
[311316476,1705061449520,-405.65053737,0.00023811,2]
[311316478,1705061449529,-505.55393993,0.00023811,2]
[311316480,1705061449538,-729.65,0.00023835,2]
[311316482,1705061449547,-500.0,0.00023835,2]
[311316484,1705061449556,-500.0,0.00023835,2]
[311316486,1705061449565,-500.0,0.00023835,2]
[311316488,1705061449574,-500.0,0.00023835,2]
[311316489,1705061449582,-500.0,0.00023835,2]
[311316491,1705061449591,-594.19,0.00023835,2]
[311316493,1705061449600,-1124.22,0.00023835,2]
[311316495,1705061449609,-580.42,0.00023835,2]
[311316497,1705061449618,-1241.77,0.00023835,2]
[311316499,1705061449628,-500.0,0.00023835,2]
[311316501,1705061449636,-2155.73,0.00023835,2]
[311316503,1705061449646,-500.0,0.00023835,2]
[311316506,1705061449655,-500.0,0.00023835,2]
[311316508,1705061449664,-500.0,0.00023835,2]
[311316509,1705061449673,-10334.86,0.00023835,2]
[311316511,1705061449682,-500.0,0.00023835,2]
[311316513,1705061449691,-500.0,0.00023835,2]
[311316515,1705061449700,-500.0,0.00023835,2]
[311316517,1705061449710,-5319.57,0.00023835,2]
[311316520,1705061449719,-2938.15,0.00023835,2]
[311316522,1705061449727,-9953.97,0.00023835,2]
[311316523,1705061449737,-709.41,0.00023835,2]
[311316525,1705061449745,-2005.47,0.00023835,2]
[311316527,1705061449754,-1458.59,0.00023835,2]
[311316529,1705061449763,-500.0,0.00023835,2]
[311316531,1705061449775,-500.0,0.00023835,2]